{"text_format":"1","workbook":"xlsx","n_sheets":1,"sheets":["Declaraţie pierdere şi profit"],"not_rendered":{"charts":0,"images":0,"macros":0,"external_links":0,"defined_names":2,"comments":0,"pivot_tables":0},"unopened":[],"bounds":{"document_bytes":16777216,"sheet_cells":100000,"rows_first":2000,"rows_last":500,"rows_between":2000,"halvings":0,"cell_chars":16384,"cell_head_chars":4096},"cells_cut":0,"cells_raw":0,"read":"whole","date_system":"1900"}

{"sheet":"Declaraţie pierdere şi profit","index":0,"n_rows":60,"n_cols":10,"rows_kept":60,"cut":false,"hidden":false,"merged":[[56,1,56,9],[9,1,9,9],[16,1,16,9],[24,1,24,9],[38,1,38,9],[43,1,43,9]]}
[null,"Profit şi pierderi Declaraţie"]
[]
[null,null,null,"PERIOADĂ ANTERIOARĂ","BUGET ","PERIOADĂ CURENTĂ ",null,"PERIOADĂ CURENTĂ\nCA % DIN VÂNZĂRI ","MODIFICARE % FAŢĂ DE\nPERIOADA ANTERIOARĂ ","MODIFICARE % FAŢĂ DE\nBUGET "]
[null,"Venit din vânzări"]
[null,"Produs/Serviciu 1",null,40,50,45,null,{"$f":"IFERROR(VenitVânzări[[#This Row],[Perioada curentă]]/SUBTOTAL(109,VenitVânzări[Perioada curentă]),0)","v":1},{"$f":"IFERROR(VenitVânzări[[#This Row],[Perioada curentă]]/VenitVânzări[[#This Row],[Perioada anterioară]]-1,0)","v":0.125},{"$f":"IFERROR(VenitVânzări[[#This Row],[Perioada curentă]]/VenitVânzări[[#This Row],[Buget]]-1,0)","v":-9.9999999999999978E-2}]
[null,"Produs/Serviciu 2",null,null,null,null,null,{"$f":"IFERROR(VenitVânzări[[#This Row],[Perioada curentă]]/SUBTOTAL(109,VenitVânzări[Perioada curentă]),0)","v":0},{"$f":"IFERROR(VenitVânzări[[#This Row],[Perioada curentă]]/VenitVânzări[[#This Row],[Perioada anterioară]]-1,0)","v":0},{"$f":"IFERROR(VenitVânzări[[#This Row],[Perioada curentă]]/VenitVânzări[[#This Row],[Buget]]-1,0)","v":0}]
[null,"Produs/Serviciu 3",null,null,null,null,null,{"$f":"IFERROR(VenitVânzări[[#This Row],[Perioada curentă]]/SUBTOTAL(109,VenitVânzări[Perioada curentă]),0)","v":0},{"$f":"IFERROR(VenitVânzări[[#This Row],[Perioada curentă]]/VenitVânzări[[#This Row],[Perioada anterioară]]-1,0)","v":0},{"$f":"IFERROR(VenitVânzări[[#This Row],[Perioada curentă]]/VenitVânzări[[#This Row],[Buget]]-1,0)","v":0}]
[null,"Produs/Serviciu 4",null,null,null,null,null,{"$f":"IFERROR(VenitVânzări[[#This Row],[Perioada curentă]]/SUBTOTAL(109,VenitVânzări[Perioada curentă]),0)","v":0},{"$f":"IFERROR(VenitVânzări[[#This Row],[Perioada curentă]]/VenitVânzări[[#This Row],[Perioada anterioară]]-1,0)","v":0},{"$f":"IFERROR(VenitVânzări[[#This Row],[Perioada curentă]]/VenitVânzări[[#This Row],[Buget]]-1,0)","v":0}]
[null,"Total",null,{"$f":"SUBTOTAL(109,VenitVânzări[Perioada anterioară])","v":40},{"$f":"SUBTOTAL(109,VenitVânzări[Buget])","v":50},{"$f":"SUBTOTAL(109,VenitVânzări[Perioada curentă])","v":45},null,{"$f":"IFERROR(VenitVânzări[[#Totals],[Perioada curentă]]/VenitVânzări[[#Totals],[Perioada curentă]],0)","v":1},{"$f":"IFERROR(VenitVânzări[[#Totals],[Perioada curentă]]/VenitVânzări[[#Totals],[Perioada anterioară]]-1,0)","v":0.125},{"$f":"IFERROR(VenitVânzări[[#Totals],[Perioada curentă]]/VenitVânzări[[#Totals],[Buget]]-1,0)","v":-9.9999999999999978E-2}]
[]
[null,"Costul vânzărilor"]
[null,"Produs/Serviciu 1",null,null,2,3,null,{"$f":"IFERROR(CostVânzări[[#This Row],[Perioada curentă]]/SUBTOTAL(109,VenitVânzări[Perioada curentă]),0)","v":6.6666666666666666E-2},{"$f":"IFERROR(CostVânzări[[#This Row],[Perioada curentă]]/CostVânzări[[#This Row],[Perioada anterioară]]-1,0)","v":0},{"$f":"IFERROR(CostVânzări[[#This Row],[Perioada curentă]]/CostVânzări[[#This Row],[Buget]]-1,0)","v":0.5}]
[null,"Produs/Serviciu 2",null,null,5,3,null,{"$f":"IFERROR(CostVânzări[[#This Row],[Perioada curentă]]/SUBTOTAL(109,VenitVânzări[Perioada curentă]),0)","v":6.6666666666666666E-2},{"$f":"IFERROR(CostVânzări[[#This Row],[Perioada curentă]]/CostVânzări[[#This Row],[Perioada anterioară]]-1,0)","v":0},{"$f":"IFERROR(CostVânzări[[#This Row],[Perioada curentă]]/CostVânzări[[#This Row],[Buget]]-1,0)","v":-0.4}]
[null,"Produs/Serviciu 3",null,null,null,1,null,{"$f":"IFERROR(CostVânzări[[#This Row],[Perioada curentă]]/SUBTOTAL(109,VenitVânzări[Perioada curentă]),0)","v":2.2222222222222223E-2},{"$f":"IFERROR(CostVânzări[[#This Row],[Perioada curentă]]/CostVânzări[[#This Row],[Perioada anterioară]]-1,0)","v":0},{"$f":"IFERROR(CostVânzări[[#This Row],[Perioada curentă]]/CostVânzări[[#This Row],[Buget]]-1,0)","v":0}]
[null,"Produs/Serviciu 4",null,null,null,null,null,{"$f":"IFERROR(CostVânzări[[#This Row],[Perioada curentă]]/SUBTOTAL(109,VenitVânzări[Perioada curentă]),0)","v":0},{"$f":"IFERROR(CostVânzări[[#This Row],[Perioada curentă]]/CostVânzări[[#This Row],[Perioada anterioară]]-1,0)","v":0},{"$f":"IFERROR(CostVânzări[[#This Row],[Perioada curentă]]/CostVânzări[[#This Row],[Buget]]-1,0)","v":0}]
[null,"Total",null,{"$f":"SUBTOTAL(109,CostVânzări[Perioada anterioară])","v":0},{"$f":"SUBTOTAL(109,CostVânzări[Buget])","v":7},{"$f":"SUBTOTAL(109,CostVânzări[Perioada curentă])","v":7},null,{"$f":"IFERROR(CostVânzări[[#Totals],[Perioada curentă]]/SUBTOTAL(109,VenitVânzări[Perioada curentă]),0)","v":0.15555555555555556},{"$f":"IFERROR(CostVânzări[[#Totals],[Perioada curentă]]/CostVânzări[[#Totals],[Perioada anterioară]]-1,0)","v":0},{"$f":"IFERROR(CostVânzări[[#Totals],[Perioada curentă]]/CostVânzări[[#Totals],[Buget]]-1,0)","v":0}]
[]
[null,"Profit brut",null,{"$f":"SUM(VenitVânzări[Perioada anterioară])-SUM(CostVânzări[Perioada anterioară])","v":40},{"$f":"SUM(VenitVânzări[Buget])-SUM(CostVânzări[Buget])","v":43},{"$f":"SUM(VenitVânzări[Perioada curentă])-SUM(CostVânzări[Perioada curentă])","v":38},null,{"$f":"IFERROR(F18/SUBTOTAL(109,VenitVânzări[Perioada curentă]),0)","v":0.84444444444444444},{"$f":"IFERROR(F18/D18-1,0)","v":-5.0000000000000044E-2},{"$f":"IFERROR(F18/E18-1,0)","v":-0.11627906976744184}]
[]
[null,"Cheltuială operaţională: Vânzări şi Marketing"]
[null,"Publicitate",null,null,22,19,null,{"$f":"IFERROR(VânzărişiMarketing[[#This Row],[Perioada curentă]]/SUBTOTAL(109,VenitVânzări[Perioada curentă]),0)","v":0.42222222222222222},{"$f":"IFERROR(VânzărişiMarketing[[#This Row],[Perioada curentă]]/VânzărişiMarketing[[#This Row],[Perioada anterioară]]-1,0)","v":0},{"$f":"IFERROR(VânzărişiMarketing[[#This Row],[Perioada curentă]]/VânzărişiMarketing[[#This Row],[Buget]]-1,0)","v":-0.13636363636363635}]
[null,"Marketing direct",null,null,null,null,null,{"$f":"IFERROR(VânzărişiMarketing[[#This Row],[Perioada curentă]]/SUBTOTAL(109,VenitVânzări[Perioada curentă]),0)","v":0},{"$f":"IFERROR(VânzărişiMarketing[[#This Row],[Perioada curentă]]/VânzărişiMarketing[[#This Row],[Perioada anterioară]]-1,0)","v":0},{"$f":"IFERROR(VânzărişiMarketing[[#This Row],[Perioada curentă]]/VânzărişiMarketing[[#This Row],[Buget]]-1,0)","v":0}]
[null,"Alte cheltuieli (specificaţi)",null,null,null,null,null,{"$f":"IFERROR(VânzărişiMarketing[[#This Row],[Perioada curentă]]/SUBTOTAL(109,VenitVânzări[Perioada curentă]),0)","v":0},{"$f":"IFERROR(VânzărişiMarketing[[#This Row],[Perioada curentă]]/VânzărişiMarketing[[#This Row],[Perioada anterioară]]-1,0)","v":0},{"$f":"IFERROR(VânzărişiMarketing[[#This Row],[Perioada curentă]]/VânzărişiMarketing[[#This Row],[Buget]]-1,0)","v":0}]
[null,"Total",null,{"$f":"SUBTOTAL(109,VânzărişiMarketing[Perioada anterioară])","v":0},{"$f":"SUBTOTAL(109,VânzărişiMarketing[Buget])","v":22},{"$f":"SUBTOTAL(109,VânzărişiMarketing[Perioada curentă])","v":19},null,{"$f":"IFERROR(VânzărişiMarketing[[#Totals],[Perioada curentă]]/SUBTOTAL(109,VenitVânzări[Perioada curentă]),0)","v":0.42222222222222222},{"$f":"IFERROR(VânzărişiMarketing[[#Totals],[Perioada curentă]]/VânzărişiMarketing[[#Totals],[Perioada anterioară]]-1,0)","v":0},{"$f":"IFERROR(VânzărişiMarketing[[#Totals],[Perioada curentă]]/VânzărişiMarketing[[#Totals],[Buget]]-1,0)","v":-0.13636363636363635}]
[]
[null,"Cheltuială operaţională: General şi Administrativ"]
[null,"Salarii",null,null,56,51,null,{"$f":"IFERROR(GeneralşiAdministrativ[[#This Row],[Perioada curentă]]/SUBTOTAL(109,VenitVânzări[Perioada curentă]),0)","v":1.1333333333333333},{"$f":"IFERROR(GeneralşiAdministrativ[[#This Row],[Perioada curentă]]/GeneralşiAdministrativ[[#This Row],[Perioada anterioară]]-1,0)","v":0},{"$f":"IFERROR(GeneralşiAdministrativ[[#This Row],[Perioada curentă]]/GeneralşiAdministrativ[[#This Row],[Buget]]-1,0)","v":-8.9285714285714302E-2}]
[null,"Servicii externe",null,null,null,null,null,{"$f":"IFERROR(GeneralşiAdministrativ[[#This Row],[Perioada curentă]]/SUBTOTAL(109,VenitVânzări[Perioada curentă]),0)","v":0},{"$f":"IFERROR(GeneralşiAdministrativ[[#This Row],[Perioada curentă]]/GeneralşiAdministrativ[[#This Row],[Perioada anterioară]]-1,0)","v":0},{"$f":"IFERROR(GeneralşiAdministrativ[[#This Row],[Perioada curentă]]/GeneralşiAdministrativ[[#This Row],[Buget]]-1,0)","v":0}]
[null,"Materiale",null,null,null,null,null,{"$f":"IFERROR(GeneralşiAdministrativ[[#This Row],[Perioada curentă]]/SUBTOTAL(109,VenitVânzări[Perioada curentă]),0)","v":0},{"$f":"IFERROR(GeneralşiAdministrativ[[#This Row],[Perioada curentă]]/GeneralşiAdministrativ[[#This Row],[Perioada anterioară]]-1,0)","v":0},{"$f":"IFERROR(GeneralşiAdministrativ[[#This Row],[Perioada curentă]]/GeneralşiAdministrativ[[#This Row],[Buget]]-1,0)","v":0}]
[null,"Ieşiri în oraş şi divertisment",null,null,null,null,null,{"$f":"IFERROR(GeneralşiAdministrativ[[#This Row],[Perioada curentă]]/SUBTOTAL(109,VenitVânzări[Perioada curentă]),0)","v":0},{"$f":"IFERROR(GeneralşiAdministrativ[[#This Row],[Perioada curentă]]/GeneralşiAdministrativ[[#This Row],[Perioada anterioară]]-1,0)","v":0},{"$f":"IFERROR(GeneralşiAdministrativ[[#This Row],[Perioada curentă]]/GeneralşiAdministrativ[[#This Row],[Buget]]-1,0)","v":0}]
[null,"Chirie",null,null,null,null,null,{"$f":"IFERROR(GeneralşiAdministrativ[[#This Row],[Perioada curentă]]/SUBTOTAL(109,VenitVânzări[Perioada curentă]),0)","v":0},{"$f":"IFERROR(GeneralşiAdministrativ[[#This Row],[Perioada curentă]]/GeneralşiAdministrativ[[#This Row],[Perioada anterioară]]-1,0)","v":0},{"$f":"IFERROR(GeneralşiAdministrativ[[#This Row],[Perioada curentă]]/GeneralşiAdministrativ[[#This Row],[Buget]]-1,0)","v":0}]
[null,"Telefon",null,null,null,null,null,{"$f":"IFERROR(GeneralşiAdministrativ[[#This Row],[Perioada curentă]]/SUBTOTAL(109,VenitVânzări[Perioada curentă]),0)","v":0},{"$f":"IFERROR(GeneralşiAdministrativ[[#This Row],[Perioada curentă]]/GeneralşiAdministrativ[[#This Row],[Perioada anterioară]]-1,0)","v":0},{"$f":"IFERROR(GeneralşiAdministrativ[[#This Row],[Perioada curentă]]/GeneralşiAdministrativ[[#This Row],[Buget]]-1,0)","v":0}]
[null,"Utilităţi",null,null,null,null,null,{"$f":"IFERROR(GeneralşiAdministrativ[[#This Row],[Perioada curentă]]/SUBTOTAL(109,VenitVânzări[Perioada curentă]),0)","v":0},{"$f":"IFERROR(GeneralşiAdministrativ[[#This Row],[Perioada curentă]]/GeneralşiAdministrativ[[#This Row],[Perioada anterioară]]-1,0)","v":0},{"$f":"IFERROR(GeneralşiAdministrativ[[#This Row],[Perioada curentă]]/GeneralşiAdministrativ[[#This Row],[Buget]]-1,0)","v":0}]
[null,"Amortizare",null,null,null,null,null,{"$f":"IFERROR(GeneralşiAdministrativ[[#This Row],[Perioada curentă]]/SUBTOTAL(109,VenitVânzări[Perioada curentă]),0)","v":0},{"$f":"IFERROR(GeneralşiAdministrativ[[#This Row],[Perioada curentă]]/GeneralşiAdministrativ[[#This Row],[Perioada anterioară]]-1,0)","v":0},{"$f":"IFERROR(GeneralşiAdministrativ[[#This Row],[Perioada curentă]]/GeneralşiAdministrativ[[#This Row],[Buget]]-1,0)","v":0}]
[null,"Asigurare",null,null,null,null,null,{"$f":"IFERROR(GeneralşiAdministrativ[[#This Row],[Perioada curentă]]/SUBTOTAL(109,VenitVânzări[Perioada curentă]),0)","v":0},{"$f":"IFERROR(GeneralşiAdministrativ[[#This Row],[Perioada curentă]]/GeneralşiAdministrativ[[#This Row],[Perioada anterioară]]-1,0)","v":0},{"$f":"IFERROR(GeneralşiAdministrativ[[#This Row],[Perioada curentă]]/GeneralşiAdministrativ[[#This Row],[Buget]]-1,0)","v":0}]
[null,"Reparaţii şi întreţinere",null,null,null,null,null,{"$f":"IFERROR(GeneralşiAdministrativ[[#This Row],[Perioada curentă]]/SUBTOTAL(109,VenitVânzări[Perioada curentă]),0)","v":0},{"$f":"IFERROR(GeneralşiAdministrativ[[#This Row],[Perioada curentă]]/GeneralşiAdministrativ[[#This Row],[Perioada anterioară]]-1,0)","v":0},{"$f":"IFERROR(GeneralşiAdministrativ[[#This Row],[Perioada curentă]]/GeneralşiAdministrativ[[#This Row],[Buget]]-1,0)","v":0}]
[null,"Alte cheltuieli (specificaţi)",null,null,null,null,null,{"$f":"IFERROR(GeneralşiAdministrativ[[#This Row],[Perioada curentă]]/SUBTOTAL(109,VenitVânzări[Perioada curentă]),0)","v":0},{"$f":"IFERROR(GeneralşiAdministrativ[[#This Row],[Perioada curentă]]/GeneralşiAdministrativ[[#This Row],[Perioada anterioară]]-1,0)","v":0},{"$f":"IFERROR(GeneralşiAdministrativ[[#This Row],[Perioada curentă]]/GeneralşiAdministrativ[[#This Row],[Buget]]-1,0)","v":0}]
[null,"Total",null,{"$f":"SUBTOTAL(109,GeneralşiAdministrativ[Perioada anterioară])","v":0},{"$f":"SUBTOTAL(109,GeneralşiAdministrativ[Buget])","v":56},{"$f":"SUBTOTAL(109,GeneralşiAdministrativ[Perioada curentă])","v":51},null,{"$f":"IFERROR(GeneralşiAdministrativ[[#Totals],[Perioada curentă]]/SUBTOTAL(109,VenitVânzări[Perioada curentă]),0)","v":1.1333333333333333},{"$f":"IFERROR(GeneralşiAdministrativ[[#Totals],[Perioada curentă]]/GeneralşiAdministrativ[[#Totals],[Perioada anterioară]]-1,0)","v":0},{"$f":"IFERROR(GeneralşiAdministrativ[[#Totals],[Perioada curentă]]/GeneralşiAdministrativ[[#Totals],[Buget]]-1,0)","v":-8.9285714285714302E-2}]
[]
[null,"Cheltuială operaţională: Altele"]
[null,"Altă cheltuială operaţională 1",null,null,10,null,null,{"$f":"IFERROR(CategoriaAlteCheltuieliOperaţionale[[#This Row],[Perioada curentă]]/SUBTOTAL(109,VenitVânzări[Perioada curentă]),0)","v":0},{"$f":"IFERROR(CategoriaAlteCheltuieliOperaţionale[[#This Row],[Perioada curentă]]/CategoriaAlteCheltuieliOperaţionale[[#This Row],[Perioada anterioară]]-1,0)","v":0},{"$f":"IFERROR(CategoriaAlteCheltuieliOperaţionale[[#This Row],[Perioada curentă]]/CategoriaAlteCheltuieliOperaţionale[[#This Row],[Buget]]-1,0)","v":-1}]
[null,"Altă cheltuială operaţională 2",null,null,null,null,null,{"$f":"IFERROR(CategoriaAlteCheltuieliOperaţionale[[#This Row],[Perioada curentă]]/SUBTOTAL(109,VenitVânzări[Perioada curentă]),0)","v":0},{"$f":"IFERROR(CategoriaAlteCheltuieliOperaţionale[[#This Row],[Perioada curentă]]/CategoriaAlteCheltuieliOperaţionale[[#This Row],[Perioada anterioară]]-1,0)","v":0},{"$f":"IFERROR(CategoriaAlteCheltuieliOperaţionale[[#This Row],[Perioada curentă]]/CategoriaAlteCheltuieliOperaţionale[[#This Row],[Buget]]-1,0)","v":0}]
[null,"Total",null,{"$f":"SUBTOTAL(109,CategoriaAlteCheltuieliOperaţionale[Perioada anterioară])","v":0},{"$f":"SUBTOTAL(109,CategoriaAlteCheltuieliOperaţionale[Buget])","v":10},{"$f":"SUBTOTAL(109,CategoriaAlteCheltuieliOperaţionale[Perioada curentă])","v":0},null,{"$f":"IFERROR(CategoriaAlteCheltuieliOperaţionale[[#Totals],[Perioada curentă]]/SUBTOTAL(109,VenitVânzări[Perioada curentă]),0)","v":0},{"$f":"IFERROR(CategoriaAlteCheltuieliOperaţionale[[#Totals],[Perioada curentă]]/CategoriaAlteCheltuieliOperaţionale[[#Totals],[Perioada anterioară]]-1,0)","v":0},{"$f":"IFERROR(CategoriaAlteCheltuieliOperaţionale[[#Totals],[Perioada curentă]]/CategoriaAlteCheltuieliOperaţionale[[#Totals],[Buget]]-1,0)","v":-1}]
[]
[null,"Cheltuieli totale operaţionale",null,{"$f":"SUM(VânzărişiMarketing[Perioada anterioară],GeneralşiAdministrativ[Perioada anterioară],CategoriaAlteCheltuieliOperaţionale[Perioada anterioară])","v":0},{"$f":"SUM(VânzărişiMarketing[Buget],GeneralşiAdministrativ[Buget],CategoriaAlteCheltuieliOperaţionale[Buget])","v":88},{"$f":"SUM(VânzărişiMarketing[Perioada curentă],GeneralşiAdministrativ[Perioada curentă],CategoriaAlteCheltuieliOperaţionale[Perioada curentă])","v":70},null,{"$f":"IFERROR(F45/SUBTOTAL(109,VenitVânzări[Perioada curentă]),0)","v":1.5555555555555556},{"$f":"IFERROR(F45/D45-1,0)","v":0},{"$f":"IFERROR(F45/E45-1,0)","v":-0.20454545454545459}]
[]
[null,"Venit din operaţiuni",null,{"$f":"D18-D45","v":40},{"$f":"E18-E45","v":-45},{"$f":"F18-F45","v":-32},null,{"$f":"IFERROR(F47/SUBTOTAL(109,VenitVânzări[Perioada curentă]),0)","v":-0.71111111111111114},{"$f":"IFERROR(IF(D47=F47,0,IF(F47>D47,ABS((F47/D47)-1),IF(AND(F47<D47,D47<0),-((F47/D47)-1),(F47/D47)-1))),0)","v":-1.8},{"$f":"IFERROR(IF(E47=F47,0,IF(F47>E47,ABS((F47/E47)-1),IF(AND(F47<E47,E47<0),-((F47/E47)-1),(F47/E47)-1))),0)","v":0.28888888888888886}]
[]
[null,"Alte venituri",null,null,null,null,null,{"$f":"IFERROR(F49/SUBTOTAL(109,VenitVânzări[Perioada curentă]),0)","v":0},{"$f":"IFERROR(F49/D49-1,0)","v":0},{"$f":"IFERROR(F49/E49-1,0)","v":0}]
[]
[null,"Impozite"]
[null,"Impozit pe venit",null,null,32,30,null,{"$f":"IFERROR(Taxe[[#This Row],[Perioada curentă]]/SUBTOTAL(109,VenitVânzări[Perioada curentă]),0)","v":0.66666666666666663},{"$f":"IFERROR(Taxe[[#This Row],[Perioada curentă]]/Taxe[[#This Row],[Perioada anterioară]]-1,0)","v":0},{"$f":"IFERROR(Taxe[[#This Row],[Perioada curentă]]/Taxe[[#This Row],[Buget]]-1,0)","v":-6.25E-2}]
[null,"Impozit pe salarii",null,null,null,null,null,{"$f":"IFERROR(Taxe[[#This Row],[Perioada curentă]]/SUBTOTAL(109,VenitVânzări[Perioada curentă]),0)","v":0},{"$f":"IFERROR(Taxe[[#This Row],[Perioada curentă]]/Taxe[[#This Row],[Perioada anterioară]]-1,0)","v":0},{"$f":"IFERROR(Taxe[[#This Row],[Perioada curentă]]/Taxe[[#This Row],[Buget]]-1,0)","v":0}]
[null,"Impozit proprietăţi imobiliare",null,null,null,null,null,{"$f":"IFERROR(Taxe[[#This Row],[Perioada curentă]]/SUBTOTAL(109,VenitVânzări[Perioada curentă]),0)","v":0},{"$f":"IFERROR(Taxe[[#This Row],[Perioada curentă]]/Taxe[[#This Row],[Perioada anterioară]]-1,0)","v":0},{"$f":"IFERROR(Taxe[[#This Row],[Perioada curentă]]/Taxe[[#This Row],[Buget]]-1,0)","v":0}]
[null,"Alte impozite (specificaţi)",null,null,null,null,null,{"$f":"IFERROR(Taxe[[#This Row],[Perioada curentă]]/SUBTOTAL(109,VenitVânzări[Perioada curentă]),0)","v":0},{"$f":"IFERROR(Taxe[[#This Row],[Perioada curentă]]/Taxe[[#This Row],[Perioada anterioară]]-1,0)","v":0},{"$f":"IFERROR(Taxe[[#This Row],[Perioada curentă]]/Taxe[[#This Row],[Buget]]-1,0)","v":0}]
[null,"Total",null,{"$f":"SUBTOTAL(109,Taxe[Perioada anterioară])","v":0},{"$f":"SUBTOTAL(109,Taxe[Buget])","v":32},{"$f":"SUBTOTAL(109,Taxe[Perioada curentă])","v":30},null,{"$f":"IFERROR(Taxe[[#Totals],[Perioada curentă]]/SUBTOTAL(109,VenitVânzări[Perioada curentă]),0)","v":0.66666666666666663},{"$f":"IFERROR(Taxe[[#Totals],[Perioada curentă]]/Taxe[[#Totals],[Perioada anterioară]]-1,0)","v":0},{"$f":"IFERROR(Taxe[[#Totals],[Perioada curentă]]/Taxe[[#Totals],[Buget]]-1,0)","v":-6.25E-2}]
[]
[null,"Profit net",null,{"$f":"D47+D49-Taxe[[#Totals],[Perioada anterioară]]","v":40},{"$f":"E47+E49-Taxe[[#Totals],[Perioada anterioară]]","v":-45},{"$f":"F47+F49-Taxe[[#Totals],[Perioada anterioară]]","v":-32},null,{"$f":"IFERROR(F58/SUBTOTAL(109,VenitVânzări[Perioada curentă]),0)","v":-0.71111111111111114},{"$f":"IFERROR(IF(D58=F58,0,IF(F58>D58,ABS((F58/D58)-1),IF(AND(F58<D58,D58<0),-((F58/D58)-1),(F58/D58)-1))),0)","v":-1.8},{"$f":"IFERROR(IF(E58=F58,0,IF(F58>E58,ABS((F58/E58)-1),IF(AND(F58<E58,E58<0),-((F58/E58)-1),(F58/E58)-1))),0)","v":0.28888888888888886}]
[null,"Marjă brută",null,{"$f":"D18/SUM(VenitVânzări[Perioada anterioară])","v":1},{"$f":"E18/SUM(VenitVânzări[Buget])","v":0.86},{"$f":"F18/SUM(VenitVânzări[Perioada curentă])","v":0.84444444444444444}]
[null,"Profit din vânzări",null,{"$f":"D58/SUM(VenitVânzări[Perioada anterioară])","v":1},{"$f":"E58/SUM(VenitVânzări[Buget])","v":-0.9},{"$f":"F58/SUM(VenitVânzări[Perioada curentă])","v":-0.71111111111111114}]